fUST/lending_fUST_20250303
["ID","MTS","AMOUNT","RATE_DAILY","PERIOD"]
[355133873,1740933045780,-500.0,0.00022191,2]
[355133875,1740933045790,-568.53,0.00022191,2]
[355133877,1740933045799,-500.0,0.00022191,2]
[355133879,1740933045809,-500.0,0.00022191,2]
[355133881,1740933045818,-1000.0,0.00022191,5]
[355133883,1740933045828,-500.0,0.00022191,2]
[355133885,1740933045837,-500.0,0.00022191,2]
[355133887,1740933045847,-500.0,0.00022191,2]
[355133889,1740933045856,-500.0,0.00022191,2]
[355133890,1740933045866,-500.0,0.00022191,2]
[355133893,1740933045876,-500.0,0.00022191,2]
[355133895,1740933045885,-500.0,0.00022191,2]
[355133898,1740933045895,-500.0,0.00022191,2]
[355133901,1740933045904,-500.0,0.00022191,2]
[355133904,1740933045919,-500.0,0.00022191,2]
[355133907,1740933045928,-500.0,0.00022191,2]
[355133909,1740933045939,-500.0,0.00022191,2]
[355133912,1740933045949,-646.5,0.00022191,2]
[355133914,1740933045958,-500.0,0.00022191,2]
[355133916,1740933045967,-500.0,0.00022191,2]
[355133918,1740933045977,-500.0,0.00022191,2]
[355133920,1740933045986,-500.0,0.00022191,2]
[355133922,1740933045997,-500.0,0.00022191,2]
[355133924,1740933046007,-581.06,0.00022191,2]
[355133926,1740933046017,-618.62,0.00022191,2]
[355133928,1740933046027,-28.44579394,0.00022191,2]
[355133940,1740933046131,-471.55420606,0.00022191,2]
[355133942,1740933046142,-500.0,0.00022191,2]
[355133944,1740933046151,-500.0,0.00022191,2]
[355133946,1740933046166,-500.0,0.00022191,2]
[355133948,1740933046176,-500.0,0.00022191,2]
[355133950,1740933046185,-500.0,0.00022191,2]
[355133952,1740933046195,-500.0,0.00022191,2]
[355133954,1740933046205,-500.0,0.00022191,2]
[355133956,1740933046215,-500.0,0.00022191,2]
[355133958,1740933046225,-500.0,0.00022191,2]
[355133960,1740933046236,-500.0,0.00022191,2]
[355133962,1740933046245,-500.0,0.00022191,2]
[355133964,1740933046255,-500.0,0.00022191,2]
[355133966,1740933046264,-511.87301183,0.00022191,2]
[355133968,1740933046274,-189.56,0.00022191,2]
[355133970,1740933046285,-541.25,0.00022465,2]
[355133972,1740933046294,-253.47,0.00022465,2]
[355133974,1740933046310,-500.0,0.00022465,2]
[355133976,1740933046321,-505.71,0.00022465,2]
[355133978,1740933046331,-564.87,0.00022465,2]
[355133980,1740933046341,-500.0,0.00022465,2]
[355133982,1740933046351,-182.1,0.00022465,2]
[355133984,1740933046360,-230.54,0.00022465,2]
[355133986,1740933046370,-500.0,0.00022465,2]
[355133988,1740933046380,-500.0,0.00022465,2]
[355133990,1740933046389,-190.0,0.00022465,2]
[355133992,1740933046399,-193.9,0.00022465,2]
[355133994,1740933046411,-206.49208344,0.00022465,2]
[355133996,1740933046420,-500.0,0.00022465,2]
[355133997,1740933046429,-500.0,0.00022465,2]
[355133999,1740933046438,-500.0,0.00022465,2]
[355134001,1740933046449,-500.0,0.00022465,2]
[355134003,1740933046458,-529.12,0.00022465,2]
[355134005,1740933046467,-4852.35,0.00022465,2]
[355134007,1740933046477,-500.0,0.00022465,2]
[355134010,1740933046488,-500.0,0.00022465,2]
[355134012,1740933046498,-297.26367646,0.00022465,2]
[355134014,1740933046511,-202.73632354,0.00022465,2]
[355134016,1740933046520,-500.0,0.00022465,2]
[355134018,1740933046529,-500.0,0.00022465,2]
[355134020,1740933046539,-500.0,0.00022465,2]
[355134022,1740933046550,-500.0,0.00022465,2]
[355134024,1740933046560,-500.0,0.00022465,2]
[355134025,1740933046570,-500.0,0.00022465,2]
[355134027,1740933046579,-175.58,0.00022465,2]
[355134029,1740933046590,-1000.0,0.00022465,5]
[355134031,1740933046599,-500.0,0.00022465,2]
[355134033,1740933046608,-500.0,0.00022465,2]
[355134035,1740933046617,-150.8,0.00022465,2]
[355134037,1740933046627,-500.0,0.00022465,2]
[355134039,1740933046636,-144.72867053,0.00022465,2]
[355134052,1740933046760,-355.27132947,0.00022465,2]
[355134054,1740933046770,-500.0,0.00022465,2]
[355134056,1740933046783,-400.39,0.00022465,2]
[355134058,1740933046793,-500.0,0.00022465,2]
[355134060,1740933046803,-500.0,0.00022465,2]
[355134062,1740933046812,-500.0,0.00022465,2]
[355134064,1740933046822,-502.66,0.00022465,2]
[355134066,1740933046832,-500.0,0.00022465,2]
[355134068,1740933046842,-500.0,0.00022465,2]
[355134071,1740933046854,-500.0,0.00022465,2]
[355134073,1740933046864,-213.67,0.00022465,2]
[355134075,1740933046874,-500.0,0.00022465,2]
[355134077,1740933046884,-282.57,0.00022465,2]
[355134079,1740933046895,-500.0,0.00022465,2]
[355134081,1740933046904,-500.0,0.00022465,2]
[355134083,1740933046918,-541.25,0.00022739,2]
[355134085,1740933046928,-379.08,0.00022739,2]
[355134086,1740933046938,-500.0,0.00022739,2]
[355134087,1740933046948,-500.0,0.00022739,2]
[355134088,1740933046958,-500.0,0.00022739,2]
[355134089,1740933046968,-500.0,0.00022739,2]
[355134090,1740933046978,-548.28,0.00022739,2]
[355134091,1740933046988,-4852.35,0.00022739,2]
[355134092,1740933046998,-500.0,0.00022739,2]
[355134093,1740933047008,-500.0,0.00022739,2]
[355134094,1740933047018,-556.73,0.00022739,2]
[355134095,1740933047028,-500.0,0.00022739,2]
[355134096,1740933047038,-500.0,0.00022739,2]
[355134098,1740933047047,-500.0,0.00022739,2]
[355134100,1740933047058,-500.0,0.00022739,2]
[355134102,1740933047068,-500.0,0.00022739,2]
[355134104,1740933047078,-500.0,0.00022739,2]
[355134106,1740933047088,-500.0,0.00022739,2]
[355134108,1740933047098,-500.0,0.00022739,2]
[355134110,1740933047108,-500.0,0.00022739,2]
[355134112,1740933047118,-500.0,0.00022739,2]
[355134114,1740933047129,-500.0,0.00022739,2]
[355134116,1740933047139,-487.76600272,0.00022739,2]
[355134118,1740933047151,-500.0,0.00022739,2]
[355134120,1740933047165,-275.47,0.00022739,2]
[355134122,1740933047176,-417.67,0.00022739,2]
[355134124,1740933047186,-500.0,0.00022739,2]
[355134126,1740933047197,-3396.6774913,0.00022994,2]
[355134129,1740933047207,-541.25,0.00023013,2]
[355134130,1740933047218,-500.0,0.00023013,2]
[355134132,1740933047227,-334.98,0.00023013,2]
[355134134,1740933047238,-500.0,0.00023013,2]
[355134137,1740933047249,-500.0,0.00023013,2]
[355134139,1740933047259,-4852.35,0.00023013,2]
[355134141,1740933047268,-323.01,0.00023013,2]
[355134142,1740933047279,-500.0,0.00023013,2]
[355134144,1740933047296,-500.0,0.00023013,2]
[355134146,1740933047306,-500.0,0.00023013,2]
[355134148,1740933047316,-500.0,0.00023013,2]
[355134150,1740933047327,-535.55,0.00023013,2]
[355134153,1740933047339,-500.0,0.00023013,2]
[355134155,1740933047349,-500.0,0.00023013,2]
[355134157,1740933047362,-500.0,0.00023013,2]
[355134159,1740933047373,-500.0,0.00023013,2]
[355134161,1740933047382,-500.0,0.00023013,2]
[355134163,1740933047392,-500.0,0.00023013,2]
[355134165,1740933047402,-500.0,0.00023013,2]
[355134167,1740933047416,-387.83,0.00023013,2]
[355134169,1740933047427,-500.0,0.00023013,2]
[355134171,1740933047436,-1000.0,0.00023252,2]
[355134173,1740933047446,-1000.0,0.00023252,2]
[355134175,1740933047456,-1000.0,0.00023252,2]
[355134177,1740933047466,-1000.0,0.00023252,2]
[355134179,1740933047476,-1000.0,0.00023252,2]
[355134181,1740933047486,-1000.0,0.00023252,2]
[355134183,1740933047496,-1000.0,0.00023252,2]
[355134185,1740933047506,-502.04676259,0.00023252,2]
[355134187,1740933047516,-1000.0,0.00023252,2]
[355134189,1740933047527,-1000.0,0.00023252,2]
[355134191,1740933047536,-1000.0,0.00023252,2]
[355134193,1740933047546,-541.25,0.00023287,2]
[355134195,1740933047556,-500.54280839,0.00023287,2]
[355134197,1740933047566,-450.73,0.00023287,2]
[355134199,1740933047576,-500.0,0.00023287,2]
[355134201,1740933047586,-4852.35,0.00023287,2]
[355134203,1740933047596,-500.0,0.00023287,2]
[355134205,1740933047607,-500.0,0.00023287,2]
[355134207,1740933047617,-500.0,0.00023287,2]
[355134209,1740933047627,-500.0,0.00023287,2]
[355134211,1740933047637,-500.0,0.00023287,2]
[355134213,1740933047647,-500.0,0.00023287,2]
[355134215,1740933047661,-500.0,0.00023287,2]
[355134217,1740933047672,-500.0,0.00023287,2]
[355134219,1740933047682,-500.0,0.00023287,2]
[355134221,1740933047692,-500.0,0.00023287,2]
[355134223,1740933047703,-500.0,0.00023287,2]
[355134225,1740933047713,-196.52,0.00023287,2]
[355134227,1740933047723,-541.25,0.00023561,2]
[355134229,1740933047733,-500.0,0.00023561,2]
[355134231,1740933047745,-4852.35,0.00023561,2]
[355134234,1740933047756,-500.0,0.00023561,2]
[355134236,1740933047767,-500.0,0.00023561,2]
[355134238,1740933047777,-500.0,0.00023561,2]
[355134240,1740933047787,-618.19,0.00023561,2]
[355134242,1740933047798,-500.0,0.00023561,2]
[355134244,1740933047808,-500.0,0.00023561,2]
[355134246,1740933047819,-500.0,0.00023561,2]
[355134248,1740933047829,-500.0,0.00023561,2]
[355134250,1740933047839,-500.0,0.00023561,2]
[355134252,1740933047849,-500.0,0.00023561,2]
[355134254,1740933047861,-150.0,0.00023564,2]
[355134256,1740933047871,-150.0,0.00023564,2]
[355134257,1740933047881,-541.25,0.00023835,2]
[355134258,1740933047890,-154.56,0.00023835,2]
[355134259,1740933047901,-4852.35,0.00023835,2]
[355134260,1740933047914,-500.0,0.00023835,2]
[355134261,1740933047923,-500.0,0.00023835,2]
[355134262,1740933047933,-500.0,0.00023835,2]
[355134263,1740933047944,-168.81,0.00023835,2]
[355134264,1740933047953,-500.0,0.00023835,2]
[355134265,1740933047964,-500.0,0.00023835,2]
[355134266,1740933047974,-500.0,0.00023835,2]
[355134267,1740933047983,-500.0,0.00023835,2]
[355134268,1740933047994,-500.0,0.00023835,2]
[355134269,1740933048004,-4122.56440983,0.000239,2]
[355134270,1740933048014,-541.25,0.00024109,2]
[355134271,1740933048025,-500.0,0.00024109,2]
[355134272,1740933048035,-500.0,0.00024109,2]
[355134273,1740933048045,-500.0,0.00024109,2]
[355134274,1740933048056,-500.0,0.00024109,2]
[355134275,1740933048067,-500.0,0.00024109,2]
[355134276,1740933048077,-500.0,0.00024109,2]
[355134277,1740933048087,-500.0,0.00024109,2]
[355134278,1740933048098,-500.0,0.00024109,2]
[355134279,1740933048108,-500.0,0.00024109,2]
[355134280,1740933048119,-4852.35,0.00024109,2]
[355134281,1740933048129,-500.0,0.00024109,2]
[355134282,1740933048140,-478.42,0.00024109,2]
[355134283,1740933048150,-500.0,0.00024109,2]
[355134284,1740933048164,-500.0,0.00024109,2]
[355134285,1740933048175,-500.0,0.00024109,2]
[355134286,1740933048185,-500.0,0.00024109,2]
[355134287,1740933048196,-500.0,0.00024109,2]
[355134288,1740933048206,-500.0,0.00024109,2]
[355134290,1740933048216,-541.25,0.00024383,2]
[355134291,1740933048227,-500.0,0.00024383,2]
[355134293,1740933048237,-4852.35,0.00024383,2]
[355134295,1740933048247,-500.0,0.00024383,2]
[355134296,1740933048257,-500.0,0.00024383,2]
[355134297,1740933048268,-500.0,0.00024383,2]
[355134298,1740933048280,-500.0,0.00024383,2]
[355134299,1740933048291,-500.0,0.00024383,2]
[355134300,1740933048304,-500.0,0.00024383,2]
[355134301,1740933048315,-500.0,0.00024383,2]
[355134302,1740933048327,-541.25,0.00024657,2]
[355134303,1740933048338,-500.0,0.00024657,2]
[355134304,1740933048349,-4852.35,0.00024657,2]
[355134305,1740933048359,-500.0,0.00024657,2]
[355134306,1740933048370,-500.0,0.00024657,2]
[355134307,1740933048381,-500.0,0.00024657,2]
[355134308,1740933048391,-500.0,0.00024657,2]
[355134309,1740933048402,-500.0,0.00024657,2]
[355134310,1740933048416,-500.0,0.00024657,2]
[355134311,1740933048427,-500.0,0.00024657,2]
[355134312,1740933048438,-500.0,0.00024658,2]
[355134313,1740933048449,-500.0,0.00024658,2]
[355134314,1740933048460,-500.0,0.00024658,2]
[355134315,1740933048472,-500.0,0.00024658,2]
[355134316,1740933048483,-500.0,0.00024658,2]
[355134317,1740933048494,-500.0,0.00024658,2]
[355134318,1740933048505,-500.0,0.00024658,2]
[355134319,1740933048516,-500.0,0.00024658,2]
[355134320,1740933048527,-500.0,0.00024658,2]
[355134321,1740933048539,-500.0,0.00024658,2]
[355134322,1740933048550,-500.0,0.00024658,2]
[355134323,1740933048561,-500.0,0.00024658,2]
[355134324,1740933048572,-500.0,0.00024658,2]
[355134325,1740933048583,-500.0,0.00024658,2]
[355134326,1740933048594,-500.0,0.00024658,2]
[355134328,1740933048605,-500.0,0.00024658,2]
[355134330,1740933048616,-500.0,0.00024658,2]
[355134332,1740933048626,-195.98,0.000247,7]
[355134335,1740933048637,-3102.69348311,0.0002476,2]
[355134337,1740933048647,-2000.0,0.00024842,4]
[355134339,1740933048659,-541.25,0.00024931,2]
[355134340,1740933048668,-500.0,0.00024931,2]
[355134342,1740933048679,-4852.35,0.00024931,2]
[355134344,1740933048689,-500.0,0.00024931,2]
[355134346,1740933048700,-500.0,0.00024931,2]
[355134348,1740933048711,-500.0,0.00024931,2]
[355134349,1740933048722,-500.0,0.00024931,2]
[355134351,1740933048733,-500.0,0.00024931,2]
[355134352,1740933048744,-500.0,0.00024931,2]
[355134354,1740933048755,-500.0,0.00024931,2]
[355134355,1740933048765,-1610.45,0.00025,2]
[355134356,1740933048776,-1437.0,0.00025,11]
[355134358,1740933048787,-541.25,0.00025205,2]
[355134359,1740933048797,-500.0,0.00025205,2]
[355134361,1740933048807,-4852.35,0.00025205,2]
[355134362,1740933048818,-500.0,0.00025205,2]
[355134364,1740933048829,-500.0,0.00025205,2]
[355134365,1740933048840,-282.41,0.00025205,2]
[355134366,1740933048851,-500.0,0.00025205,2]
[355134368,1740933048862,-500.0,0.00025205,2]
[355134369,1740933048872,-500.0,0.00025205,2]
[355134370,1740933048883,-500.0,0.00025205,2]
[355134371,1740933048894,-541.25,0.00025479,2]
[355134372,1740933048904,-500.0,0.00025479,2]
[355134373,1740933048917,-4852.35,0.00025479,2]
[355134374,1740933048927,-500.0,0.00025479,2]
[355134376,1740933048938,-500.0,0.00025479,2]
[355134377,1740933048948,-500.0,0.00025479,2]
[355134379,1740933048960,-500.0,0.00025479,2]
[355134380,1740933048969,-417.31,0.00025479,2]
[355134382,1740933048980,-500.0,0.00025479,2]
[355134383,1740933048990,-2200.0,0.00025563,2]
[355134385,1740933049001,-541.25,0.00025753,2]
[355134386,1740933049011,-500.0,0.00025753,2]
[355134387,1740933049022,-4852.35,0.00025753,2]
[355134388,1740933049033,-500.0,0.00025753,2]
[355134396,1740933049201,-500.0,0.00025753,2]
[355134397,1740933049226,-500.0,0.00025753,2]
[355134399,1740933049237,-500.0,0.00025753,2]
[355134400,1740933049249,-500.0,0.00025753,2]
[355134402,1740933049259,-160.0,0.00026,3]
[355134404,1740933049269,-160.0,0.00026,3]
[355134405,1740933049279,-19629.85965445,0.00026,3]
[355134407,1740933049295,-541.25,0.00026027,2]
[355134408,1740933049305,-193.20225442,0.00026027,2]
[355134410,1740933049315,-2664.9920775,0.00026027,2]
[355134411,1740933049331,-1000.0,0.00026027,2]
[355134413,1740933049342,-574.12279748,0.00026027,2]
[355134415,1740933049375,-500.0,0.00021917,2]
[355134417,1740933049386,-500.0,0.00022191,2]
[355134418,1740933049396,-613.23512502,0.00026027,2]
[355134420,1740933049406,-500.0,0.00026027,2]
[355134421,1740933049418,-299.72,0.00026027,2]
[355134423,1740933049428,-500.0,0.00026027,2]
[355134424,1740933049438,-500.0,0.00026027,2]
[355134426,1740933049464,-562.52,0.00026027,2]
[355134427,1740933049474,-541.25,0.00026301,2]
[355134428,1740933049484,-4218.45223157,0.00026301,2]
[355134429,1740933049496,-633.89776843,0.00026301,2]
[355134430,1740933049506,-623.37,0.00026301,2]
[355134431,1740933049517,-487.63,0.00026301,2]
[355134432,1740933049527,-500.0,0.00026301,2]
[355134433,1740933049536,-1437.0,0.000265,12]
[355134434,1740933049546,-150.0,0.00026564,2]
[355134435,1740933049557,-150.0,0.00026564,2]
[355134436,1740933049567,-541.25,0.00026575,2]
[355134437,1740933049577,-4852.35,0.00026575,2]
[355134438,1740933049587,-500.0,0.00026575,2]
[355134439,1740933049596,-541.25,0.00026849,2]
[355134440,1740933049606,-4852.35,0.00026849,2]
[355134441,1740933049616,-630.07,0.00026849,2]
[355134442,1740933049625,-500.0,0.00026952,2]
[355134443,1740933049635,-500.0,0.00026952,2]
[355134444,1740933049645,-1000.0,0.00026952,2]
[355134445,1740933049655,-900.88649107,0.00026952,2]
[355134446,1740933049667,-1000.0,0.00026952,2]
[355134447,1740933049678,-1000.0,0.00026952,2]
[355134448,1740933049688,-175.00708754,0.00026952,2]
[355134449,1740933049698,-500.06331975,0.00026952,2]
[355134450,1740933049708,-1000.0,0.00026952,2]
[355134451,1740933049718,-8.75403201,0.00026952,2]
[355134452,1740933049731,-991.24596799,0.00026952,2]
[355134453,1740933049741,-1000.0,0.00026952,2]
[355134454,1740933049751,-1000.0,0.00026952,2]
[355134455,1740933049761,-585.01411937,0.00026952,2]
[355134456,1740933049773,-414.98588063,0.00026952,2]
[355134457,1740933049783,-1000.0,0.00026952,2]
[355134458,1740933049793,-200.0,0.00027,120]
[355134459,1740933049802,-263.822,0.0002704,15]
[355134460,1740933049812,-541.25,0.00027123,2]
[355134461,1740933049821,-136.08914101,0.00027123,2]
[355134462,1740933049833,-3378.8614406,0.00027123,2]
[355134463,1740933049845,-1337.39941839,0.00027123,2]
[355134464,1740933049855,-890.80058161,0.00027195,2]
[355134505,1740933173579,407.48,0.00010959,2]
[355134506,1740933184079,339.57,0.00010959,2]
[355134507,1740933194586,282.97,0.00010959,2]
[355134508,1740933205103,235.81,0.00010959,2]
[355134509,1740933215592,196.51,0.00010959,2]
[355134510,1740933226146,163.76,0.00010959,2]
[355134511,1740933236713,818.8,0.00010959,2]
[355134512,1740933320845,504.34,0.00016021,2]
[355134513,1740933391671,423.4571842,0.00015901,2]
[355134514,1740933530292,1066.367,0.00016021,2]
[355134515,1740933562584,24900.0,0.00015428,2]
[355134516,1740933613753,1037.7360402,0.00015425,2]
[355134517,1740933617453,180.689599,0.00015425,2]
[355134518,1740933617653,180.689599,0.00015811,2]
[355134519,1740933666761,5000.0,0.00016021,2]
[355134521,1740933695958,10000.0,0.00015418,2]
[355134522,1740933711151,6342.0384004,0.00015414,2]
[355134523,1740933715575,250.0,0.00015414,2]
[355134524,1740933798224,22612.879706,0.00015532,2]
[355134525,1740933828409,203.141321,0.00015412,2]
[355134527,1740933889188,1083.1085275,0.00015408,2]
[355134528,1740933906647,-180.689599,0.00016196,2]
[355134529,1740933906679,-310.0,0.00016318,10]
[355134530,1740933906707,-209.310401,0.00016319,2]
[355134531,1740933916085,57928.0711011,0.00015428,2]
[355134532,1740933928864,250.0,0.00015207,2]
[355134533,1740933932306,-200.0,0.00016319,2]
[355134534,1740933994106,-1439.3928915,0.00016319,2]
[355134535,1740933994131,-992.50164413,0.00016334,2]
[355134536,1740933994155,-887.55645743,0.00016335,2]
[355134537,1740933994179,-224.91168063,0.000164,2]
[355134538,1740933994205,-300.0,0.00016426,2]
[355134539,1740933994234,-157.85,0.00016427,2]
[355134540,1740933994260,-157.85,0.00016427,2]
[355134541,1740933994488,-157.85,0.00016427,2]
[355134542,1740933994514,-157.85,0.00016427,2]
[355134543,1740933994538,-157.85,0.00016427,2]
[355134544,1740933994563,-157.85,0.00016427,2]
[355134545,1740933994587,-157.85,0.00016427,2]
[355134546,1740933994619,-157.85,0.00016427,2]
[355134547,1740933994642,-157.85,0.00016427,2]
[355134548,1740933994669,-157.85,0.00016427,2]
[355134549,1740933994694,-157.85,0.00016427,2]
[355134550,1740933994724,-157.85,0.00016427,2]
[355134551,1740933994750,-157.85,0.00016427,2]
[355134552,1740933994775,-157.85,0.00016427,2]
[355134553,1740933994797,-157.85,0.00016427,2]
[355134554,1740933994822,-157.85,0.00016427,2]
[355134555,1740933994845,-157.85,0.00016427,2]
[355134556,1740933994868,-500.0,0.00016434,2]
[355134557,1740933994893,-156.45553755,0.00016434,2]
[355134558,1740933994916,-500.0,0.00016434,2]
[355134559,1740933994941,-500.0,0.00016434,2]
[355134560,1740933994963,-500.0,0.00016434,2]
[355134561,1740933994992,-500.0,0.00016434,2]
[355134562,1740933995016,-220.63001629,0.00016434,2]
[355134563,1740933995041,-500.0,0.00016434,2]
[355134564,1740933995065,-500.0,0.00016434,2]
[355134565,1740933995091,-500.0,0.00016434,2]
[355134566,1740933995115,-500.0,0.00016434,2]
[355134567,1740933995140,-500.0,0.00016434,2]
[355134568,1740933995166,-537.34885476,0.00016434,2]
[355134569,1740933995195,-500.0,0.00016434,2]
[355134570,1740933995227,-500.0,0.00016434,2]
[355134571,1740933995253,-500.0,0.00016434,2]
[355134572,1740933995277,-500.0,0.00016434,2]
[355134573,1740933995302,-113.74440071,0.00016434,2]
[355134574,1740934021464,2370.887416,0.00015492,2]
[355134575,1740934079947,195.2306018,0.00015445,2]
[355134578,1740934092483,3302.090607,0.00015445,2]
[355134580,1740934093748,5000.0,0.00016021,2]
[355134581,1740934098602,5202.0446999,0.00015445,2]
[355134583,1740934152230,5108.4245145,0.00015435,2]
[355134964,1740934239082,-710.04516592,0.00016332,2]
[355134966,1740934239093,-500.0,0.00016334,2]
[355134968,1740934239103,-153.64,0.00016422,2]
[355134970,1740934239112,-153.64,0.00016422,2]
[355134972,1740934239122,-153.64,0.00016422,2]
[355134974,1740934239133,-153.64,0.00016422,2]
[355134976,1740934239143,-153.64,0.00016422,2]
[355134978,1740934239152,-153.64,0.00016422,2]
[355134980,1740934239163,-302.0,0.00016428,2]
[355134982,1740934239174,-81.31355925,0.00016428,2]
[355134985,1740934239186,-118.68644075,0.00016428,2]
[355134987,1740934239196,-220.0,0.00016428,2]
[355134989,1740934239206,-242.0,0.00016428,2]
[355134991,1740934239216,-266.2,0.00016428,2]
[355134993,1740934239226,-292.82,0.00016428,2]
[355134994,1740934239239,-322.102,0.00016428,2]
[355134997,1740934239249,-354.3122,0.00016428,2]
[355134999,1740934239259,-389.74342,0.00016428,2]
[355135001,1740934239269,-400.0,0.00016428,2]
[355135004,1740934239278,-481.70849592,0.00016428,2]
[355135007,1740934239288,-300.0,0.00016431,2]
[355135009,1740934239298,-500.0,0.00016431,2]
[355135010,1740934239308,-309.51887628,0.00016431,2]
[355135012,1740934239318,-500.0,0.00016431,2]
[355135014,1740934239327,-562.64451771,0.00016431,2]
[355135016,1740934239336,-562.64451771,0.00016431,2]
[355135018,1740934239346,-500.0,0.00016431,2]
[355135020,1740934239356,-192.47911926,0.00016431,2]
[355135022,1740934239366,-562.64451771,0.00016431,2]
[355135024,1740934239375,-500.0,0.00016431,2]
[355135026,1740934239385,-562.64451771,0.00016431,2]
[355135027,1740934239394,-500.0,0.00016431,2]
[355135029,1740934239403,-562.64451771,0.00016431,2]
[355135031,1740934239414,-500.0,0.00016431,2]
[355135033,1740934239424,-562.64451771,0.00016431,2]
[355135035,1740934239435,-500.0,0.00016431,2]
[355135037,1740934239445,-562.64451771,0.00016431,2]
[355135039,1740934239455,-500.0,0.00016431,2]
[355135041,1740934239465,-562.64451771,0.00016431,2]
[355135043,1740934239475,-500.0,0.00016431,2]
[355135045,1740934239489,-562.64451771,0.00016431,2]
[355135047,1740934239499,-562.64451771,0.00016431,2]
[355135049,1740934239509,-562.64451771,0.00016431,2]
[355135051,1740934239519,-500.0,0.00016431,2]
[355135053,1740934239529,-562.64451771,0.00016431,2]
[355135054,1740934239539,-562.64451771,0.00016431,2]
[355135056,1740934239549,-500.0,0.00016431,2]
[355135058,1740934239559,-562.64451771,0.00016431,2]
[355135060,1740934239569,-562.64451771,0.00016431,2]
[355135062,1740934239579,-500.0,0.00016431,2]
[355135064,1740934239588,-562.64451771,0.00016431,2]
[355135066,1740934239598,-500.0,0.00016431,2]
[355135068,1740934239608,-562.64451771,0.00016431,2]
[355135069,1740934239618,-500.0,0.00016431,2]
[355135071,1740934239628,-562.64451771,0.00016431,2]
[355135073,1740934239637,-500.0,0.00016431,2]
[355135076,1740934239647,-562.64451771,0.00016431,2]
[355135078,1740934239656,-500.0,0.00016431,2]
[355135080,1740934239665,-562.64451771,0.00016431,2]
[355135082,1740934239674,-500.0,0.00016431,2]
[355135084,1740934239687,-562.64451771,0.00016431,2]
[355135086,1740934239702,-500.0,0.00016431,2]
[355135088,1740934239713,-562.64451771,0.00016431,2]
[355135090,1740934239722,-500.0,0.00016431,2]
[355135091,1740934239738,-562.64451771,0.00016431,2]
[355135093,1740934239748,-562.64451771,0.00016431,2]
[355135096,1740934239759,-500.0,0.00016431,2]
[355135098,1740934239769,-562.64451771,0.00016431,2]
[355135100,1740934239779,-500.0,0.00016431,2]
[355135102,1740934239790,-562.64451771,0.00016431,2]
[355135103,1740934239799,-500.0,0.00016431,2]
[355135106,1740934239810,-562.64451771,0.00016431,2]
[355135107,1740934239820,-562.64451771,0.00016431,2]
[355135109,1740934239830,-562.64451771,0.00016431,2]
[355135111,1740934239840,-500.0,0.00016431,2]
[355135114,1740934239850,-562.64451771,0.00016431,2]
[355135116,1740934239866,-500.0,0.00016431,2]